bitfinex/quotes_SOLUSD_20240726
["timestamp","ask_amount","ask_price","bid_price","bid_amount"]
[1721980102478,37.23,177.3,177.29,338.7067346]
[1721980102790,178.88260683,177.3,177.29,276.2583346]
[1721980102970,178.88260683,177.3,177.29,266.8143346]
[1721980103177,198.88260683,177.3,177.29,266.8143346]
[1721980103372,178.88260683,177.3,177.29,252.0573346]
[1721980103688,198.62300683,177.3,177.29,236.6568346]
[1721980103861,178.62300683,177.3,177.29,236.6568346]
[1721980104491,178.62300683,177.3,177.29,225.9612346]
[1721980104794,184.52650458,177.3,177.29,213.3549346]
[1721980104973,184.52650458,177.3,177.29,206.1571346]
[1721980105465,184.52650458,177.3,177.29,123.2234346]
[1721980105662,184.52650458,177.3,177.29,115.9095346]
[1721980105889,184.52650458,177.3,177.29,107.2855346]
[1721980106394,204.52650458,177.3,177.29,88.8748346]
[1721980106578,204.52650458,177.3,177.29,60.7892346]
[1721980106777,224.52650458,177.3,177.29,46.1099346]
[1721980106980,224.52650458,177.3,177.29,32.7817346]
[1721980107302,224.52650458,177.3,177.29,18.8446346]
[1721980107469,224.52650458,177.3,177.29,7.2391346]
[1721980107668,224.52650458,177.3,177.29,3.46e-05]
[1721980108400,5.6435,177.2,177.15,15.0498]
[1721980108569,45.0,177.19,177.15,15.0498]
[1721980108970,57.41,177.19,177.15,20.6947]
[1721980111002,45.0,177.19,177.16,18.0545]
[1721980111170,12.41,177.21,177.16,18.0545]
[1721980111171,45.0,177.2,177.16,18.0545]
[1721980111377,12.41,177.21,177.16,18.0545]
[1721980112802,18.0531,177.21,177.16,18.0545]
[1721980113390,12.41,177.21,177.16,18.0545]
[1721980114388,18.0531,177.21,177.16,18.0545]
[1721980114583,18.0531,177.21,177.16,5.6445]
[1721980115409,12.41,177.19,177.15,29.1614]
[1721980115594,12.41,177.18,177.15,15.0498]
[1721980116106,12.41,177.19,177.15,20.6946]
[1721980117210,63.0533,177.2,177.15,20.6946]
[1721980117416,57.41,177.2,177.15,20.6946]
[1721980118817,12.41,177.19,177.15,20.6946]
[1721980118986,57.41,177.2,177.15,20.6946]
[1721980119396,57.41,177.2,177.16,5.6445]
[1721980120208,57.41,177.2,177.15,27.4598]
[1721980120412,12.41,177.19,177.15,15.0498]
[1721980120625,45.0,177.18,177.15,15.0498]
[1721980121124,45.0,177.18,177.15,20.6947]
[1721980121915,12.41,177.19,177.16,5.6445]
[1721980122123,12.41,177.2,177.16,5.6445]
[1721980122302,45.0,177.19,177.16,5.6445]
[1721980122492,45.0,177.19,177.17,5.6442]
[1721980123012,45.0,177.19,177.16,5.6445]
[1721980123521,57.41,177.19,177.16,5.6445]
[1721980125015,57.41,177.19,177.15,20.6946]
[1721980126219,45.0,177.19,177.15,20.6946]
[1721980127195,57.41,177.19,177.15,20.6946]
[1721980128518,57.41,177.19,177.16,5.6446]
[1721980128720,45.0,177.19,177.16,5.6446]
[1721980129518,45.0,177.19,177.15,20.6947]
[1721980132328,57.41,177.19,177.15,15.0498]
[1721980132634,5.6449,177.15,177.11,15.389]
[1721980132927,57.41,177.14,177.11,15.389]
[1721980133132,18.0553,177.14,177.11,15.389]
[1721980133336,57.41,177.13,177.11,15.389]
[1721980133837,63.0556,177.13,177.11,15.389]
[1721980134696,63.0556,177.13,177.1,6.3081]
[1721980134902,12.41,177.11,177.07,29.218]
[1721980136418,12.41,177.11,177.07,34.8653]
[1721980138430,12.41,177.13,177.08,5.647]
[1721980138604,12.41,177.13,177.09,5.6467]
[1721980139327,5.6453,177.14,177.08,5.647]
[1721980139328,12.41,177.12,177.08,5.647]
[1721980140711,12.41,177.1,177.07,29.218]
[1721980142234,5.6445,177.17,177.11,5.646]
[1721980142445,32.41,177.16,177.11,12.41]
[1721980142729,32.41,177.16,177.11,18.0561]
[1721980142936,32.41,177.16,177.11,5.6461]
[1721980143232,12.41,177.15,177.11,5.6461]
[1721980143434,32.41,177.16,177.11,18.0561]
[1721980143934,5.6463,177.11,177.07,15.0995]
[1721980144130,5.6459,177.12,177.07,15.0995]
[1721980144425,12.41,177.12,177.07,27.5095]
[1721980145503,5.6456,177.13,177.07,27.5095]
[1721980145710,12.41,177.14,177.09,18.0567]
[1721980146014,12.41,177.12,177.07,27.5095]
[1721980146814,18.0559,177.12,177.07,20.7469]
[1721980147014,18.0559,177.12,177.07,15.0995]
[1721980147015,12.41,177.11,177.07,15.0995]
[1721980148136,18.0562,177.11,177.07,15.0995]
[1721980148442,45.0,177.1,177.07,15.0995]
[1721980148640,0.98335964,177.23,177.18,5.6439]
[1721980148950,5.641,177.28,177.21,5.643]
[1721980149126,12.41,177.26,177.22,5.6425]
[1721980150218,12.41,177.26,177.19,14.1091]
[1721980150432,12.41,177.22,177.17,5.6439]
[1721980150615,12.41,177.2,177.15,32.1664]
[1721980150945,12.41,177.21,177.16,5.6446]
[1721980151138,12.41,177.21,177.16,18.0546]
[1721980151432,12.41,177.21,177.17,5.6442]
[1721980151933,12.41,177.21,177.15,19.7562]
[1721980152138,12.41,177.21,177.16,5.6444]
[1721980152338,12.41,177.21,177.15,26.5216]
[1721980153038,12.41,177.18,177.13,22.5476]
[1721980153339,12.41,177.16,177.13,22.5476]
[1721980154226,5.6439,177.18,177.13,22.5476]
[1721980156126,5.6436,177.19,177.13,28.1931]
[1721980156639,5.6439,177.18,177.13,28.1931]
[1721980156957,5.6439,177.18,177.13,22.5476]
[1721980157836,5.6439,177.18,177.13,28.1931]
[1721980158153,5.6436,177.2,177.13,28.1931]
[1721980158447,50.6436,177.19,177.13,28.1931]
[1721980159150,5.644,177.18,177.13,22.5476]
[1721980160449,5.6443,177.17,177.13,22.5476]
[1721980163039,5.644,177.18,177.13,22.5476]
[1721980164943,5.6435,177.2,177.14,14.1129]
[1721980165426,5.6436,177.19,177.14,19.7581]
[1721980166342,5.6433,177.2,177.14,19.7581]
[1721980166547,4.89722792,177.2,177.14,19.7581]
[1721980167249,4.89722792,177.2,177.15,5.6448]
[1721980168248,4.89722792,177.2,177.14,19.758]
[1721980169458,8.84892582,177.22,177.14,14.1129]
[1721980169835,5.644,177.18,177.13,22.5476]
[1721980170030,5.6436,177.19,177.14,5.6451]
[1721980170453,5.6436,177.19,177.14,6.77400214]
[1721980170645,5.6434,177.2,177.14,6.77400214]
[1721980170953,5.6434,177.2,177.14,5.6451]
[1721980171143,5.6434,177.2,177.14,6.77397322]
[1721980171658,5.6434,177.2,177.14,5.6451]
[1721980172043,5.643,177.21,177.15,5.6447]
[1721980172639,5.6434,177.2,177.14,6.77397119]
[1721980172838,5.6434,177.2,177.14,5.6451]
[1721980173255,5.6434,177.2,177.15,1.1288687]
[1721980173435,5.6434,177.2,177.14,5.6451]
[1721980173756,5.6434,177.2,177.15,5.6449]
[1721980174155,5.6434,177.2,177.14,5.6451]
[1721980174551,5.6434,177.2,177.15,5.6448]
[1721980175439,5.6434,177.2,177.14,5.6452]
[1721980176139,12.41,177.19,177.14,18.0552]
[1721980176774,12.41,177.19,177.14,5.6452]
[1721980178153,12.41,177.2,177.15,26.5215]
[1721980178351,12.41,177.21,177.16,5.6445]
[1721980179463,12.41,177.21,177.17,5.6442]
[1721980184172,12.41,177.22,177.17,5.6442]
[1721980189470,20.39215626,177.25,177.18,14.1098]
[1721980189663,12.41,177.22,177.19,5.6435]
[1721980189869,12.41,177.23,177.2,5.6433]
[1721980190051,12.41,177.24,177.2,5.6433]
[1721980190469,18.052,177.25,177.2,5.6433]
[1721980190951,18.052,177.25,177.2,11.8677]
[1721980192388,12.41,177.22,177.18,14.1098]
[1721980192562,5.6429,177.22,177.16,5.6443]
[1721980192876,12.41,177.2,177.16,5.6443]
[1721980193086,12.41,177.2,177.16,5.6444]
[1721980194579,12.41,177.2,177.15,42.4058]
[1721980194580,12.41,177.2,177.15,35.6406]
[1721980195278,18.0533,177.2,177.15,35.6406]
[1721980195658,12.41,177.2,177.15,35.6406]
[1721980196783,12.41,177.2,177.16,5.6445]
[1721980198782,5.643,177.21,177.16,5.6445]
[1721980198975,12.41,177.2,177.16,5.6445]
[1721980200287,12.41,177.2,177.17,5.6441]
[1721980200464,5.6424,177.23,177.18,5.6438]
[1721980200667,12.41,177.21,177.18,5.6438]
[1721980202379,12.41,177.2,177.15,42.4058]
[1721980202582,12.41,177.18,177.15,15.8837]
[1721980203178,12.41,177.17,177.15,15.8837]
[1721980203374,12.41,177.17,177.12,14.1145]
[1721980203576,12.41,177.17,177.13,5.6454]
[1721980203972,12.41,177.15,177.12,14.1145]
[1721980204175,12.41,177.15,177.1,27.61]
[1721980204566,5.6447,177.16,177.1,27.61]
[1721980204769,12.41,177.15,177.1,27.61]
[1721980206467,12.41,177.15,177.11,5.6461]
[1721980206984,12.41,177.16,177.12,5.6458]
[1721980207169,12.41,177.17,177.12,5.6458]
[1721980207368,5.6443,177.17,177.12,5.6458]
[1721980207564,12.41,177.17,177.13,5.6455]
[1721980208283,12.41,177.17,177.12,18.0558]
[1721980208479,12.41,177.16,177.11,32.1708]
[1721980209188,12.41,177.16,177.11,19.7608]
[1721980209594,12.41,177.16,177.12,5.6458]
[1721980211367,12.41,177.16,177.11,32.1709]
[1721980212480,12.41,177.17,177.12,18.0557]
[1721980212681,12.41,177.19,177.13,18.0554]
[1721980212881,12.41,177.19,177.14,12.41]
[1721980213193,18.0538,177.19,177.14,12.41]
[1721980213393,12.41,177.2,177.15,5.6448]
[1721980213882,12.41,177.2,177.15,6.77366448]
[1721980214082,12.41,177.2,177.15,19.18366448]
[1721980214392,18.0534,177.2,177.15,13.5388505]
[1721980215390,5.6436,177.19,177.15,13.5388505]
[1721980215774,5.6436,177.19,177.15,12.41]
[1721980216478,5.6436,177.19,177.15,13.53885214]
[1721980216893,5.6436,177.19,177.15,12.41]
[1721980217082,5.6436,177.19,177.14,26.523]
[1721980217485,18.0533,177.21,177.15,12.41]
[1721980217685,12.41,177.21,177.16,29.43900125]
[1721980218199,5.6436,177.2,177.16,28.3102]
[1721980218407,5.6436,177.2,177.17,1.12880052]
[1721980218581,5.643,177.21,177.17,13.53880052]
[1721980218777,5.6427,177.22,177.18,13.53867948]
[1721980218982,5.6424,177.23,177.19,13.53861547]
[1721980219184,14.74936898,177.28,177.23,15.6877]
[1721980219393,12.41,177.32,177.27,5.6411]
[1721980219705,12.41,177.32,177.27,19.7438]
[1721980220005,12.41,177.31,177.25,12.41]
[1721980220194,12.41,177.3,177.24,32.1571]
[1721980220507,18.0501,177.3,177.24,26.5151]
[1721980220804,5.6401,177.3,177.25,12.41]
[1721980221407,18.0497,177.32,177.27,5.6411]
[1721980221586,5.6397,177.32,177.27,18.0511]
[1721980221809,18.0492,177.33,177.27,18.0511]
[1721980222187,18.0492,177.33,177.28,12.41]
[1721980222807,5.6395,177.32,177.28,12.41]
[1721980222985,5.6395,177.32,177.27,18.0511]
[1721980223185,5.6399,177.31,177.26,12.41]
[1721980223501,12.41,177.31,177.25,12.41]
[1721980224287,12.41,177.3,177.24,12.41]
[1721980224516,18.0504,177.3,177.25,12.41]
[1721980224688,5.6405,177.29,177.25,12.41]
[1721980225185,5.6405,177.29,177.23,22.239]
[1721980225186,5.6409,177.28,177.23,22.239]
[1721980225386,12.41,177.26,177.23,22.239]
[1721980225993,5.6411,177.27,177.23,22.239]
[1721980225994,18.0511,177.27,177.23,22.239]
[1721980226314,18.0508,177.28,177.23,22.239]
[1721980227299,18.0511,177.27,177.23,22.239]
[1721980228083,5.6414,177.26,177.23,22.239]
[1721980229592,18.0511,177.27,177.23,22.239]
[1721980232404,12.41,177.27,177.23,22.239]
[1721980232606,18.0512,177.27,177.23,15.6877]
[1721980235701,5.90149499,177.31,177.23,42.2029]
[1721980235911,45.0,177.3,177.23,42.2029]
[1721980236209,45.0,177.3,177.23,29.7929]
[1721980236210,12.41,177.27,177.23,29.7929]
[1721980237113,18.0511,177.27,177.23,29.7929]
[1721980237491,12.41,177.27,177.23,29.7929]
[1721980237992,18.0511,177.27,177.23,29.7929]
[1721980240014,18.0511,177.27,177.23,15.6877]
[1721980240815,12.41,177.27,177.23,15.6877]
[1721980241514,18.0511,177.27,177.23,15.6877]
[1721980242313,12.41,177.27,177.23,21.33]
[1721980242722,12.41,177.27,177.23,15.6877]
[1721980243093,18.0511,177.27,177.23,15.6877]
[1721980244333,5.6411,177.27,177.23,28.0977]
[1721980244512,18.0508,177.28,177.23,28.0977]
[1721980244717,18.0508,177.28,177.24,1.12825282]
[1721980245022,5.6408,177.28,177.25,7.25845297]
[1721980247514,5.6411,177.27,177.25,7.25845297]
[1721980247830,5.6411,177.27,177.25,6.1302]
[1721980248402,5.6411,177.27,177.25,7.25839686]
[1721980251035,5.6414,177.26,177.25,6.1302]
[1721980254105,5.6411,177.27,177.25,6.1302]
[1721980254308,12.41,177.3,177.25,6.1302]
[1721980254543,6.84263469,177.3,177.25,6.1302]
[1721980254910,6.84263469,177.3,177.26,1.12817338]
[1721980255413,6.84263469,177.3,177.25,7.2583676]
[1721980256032,5.6408,177.28,177.25,7.2583676]
[1721980259939,5.6405,177.29,177.25,19.6683676]
[1721980260226,5.6408,177.28,177.25,19.6683676]
[1721980260916,5.6405,177.29,177.25,19.6683676]
[1721980261110,5.6405,177.29,177.25,6.1302]
[1721980261633,5.6405,177.29,177.25,18.5402]
[1721980261832,5.6405,177.29,177.25,6.1302]
[1721980264444,12.48273469,177.3,177.25,11.7719]
[1721980265023,31.30590401,177.35,177.25,6.1302]
[1721980265024,18.0508,177.28,177.25,6.1302]
[1721980265734,12.41,177.28,177.25,6.1302]
[1721980267957,18.0505,177.29,177.25,6.1302]
[1721980268252,12.41,177.29,177.25,11.7718]
[1721980270030,5.6402,177.3,177.25,11.7718]
[1721980270250,18.0502,177.3,177.25,11.7718]
[1721980271147,12.41,177.29,177.25,11.7718]
[1721980271940,12.41,177.3,177.26,6.76953476]
[1721980272139,12.41,177.3,177.26,5.6414]
[1721980275648,12.41,177.3,177.25,24.1818]
[1721980275951,18.0503,177.3,177.25,24.1818]
[1721980276159,5.6407,177.29,177.25,6.1302]
[1721980277255,5.6407,177.29,177.25,18.5402]
[1721980278482,5.6407,177.29,177.25,6.1302]
[1721980279165,18.0501,177.3,177.25,11.7719]
[1721980279372,5.6405,177.29,177.25,6.1302]
[1721980279952,5.6405,177.29,177.26,1.12813365]
[1721980280554,5.6401,177.3,177.25,24.1819]
[1721980280737,5.6401,177.3,177.26,1.12813287]
[1721980281354,5.6398,177.31,177.26,5.6414]
[1721980281663,18.0498,177.31,177.26,5.6414]
[1721980282667,8.84376339,177.33,177.27,18.0508]
[1721980282668,5.6395,177.32,177.27,18.0508]
[1721980282963,5.6395,177.32,177.28,12.41]
[1721980284052,5.6395,177.32,177.27,18.0508]
[1721980288545,5.6399,177.31,177.26,34.8677]
[1721980288874,5.6399,177.31,177.26,47.2777]
[1721980289560,18.0495,177.32,177.26,47.2777]
[1721980289951,18.0495,177.32,177.27,5.6409]
[1721980290971,12.41,177.32,177.27,5.6409]
[1721980291157,12.41,177.31,177.27,5.6409]
[1721980291357,12.41,177.31,177.28,5.6407]
[1721980292640,12.41,177.32,177.28,5.6407]
[1721980294057,12.41,177.32,177.27,5.6411]
[1721980295168,12.41,177.32,177.28,5.6407]
[1721980295473,12.41,177.32,177.29,5.6404]
[1721980295779,12.41,177.33,177.29,5.6404]
[1721980296188,5.89964911,177.37,177.29,14.101]
[1721980296474,12.41,177.34,177.31,5.6397]
[1721980296653,12.41,177.33,177.31,5.6397]
[1721980297769,12.41,177.33,177.3,5.64]
[1721980298490,12.41,177.33,177.29,19.7414]
[1721980302272,12.41,177.33,177.3,5.64]
[1721980308181,12.41,177.34,177.3,5.64]
[1721980308493,12.41,177.35,177.31,5.6397]
[1721980308692,12.41,177.35,177.3,5.6401]
[1721980309366,18.0486,177.35,177.3,5.6401]
[1721980310158,12.41,177.34,177.3,5.6401]
[1721980317069,20.76407931,177.39,177.26,15.1236]
[1721980317070,18.05,177.31,177.26,15.1236]
[1721980317272,12.41,177.28,177.26,15.1236]
[1721980317578,12.41,177.27,177.26,15.1236]
[1721980318486,12.41,177.27,177.22,19.7492]
[1721980318677,12.41,177.3,177.22,19.7492]
[1721980318678,12.41,177.25,177.22,19.7492]
[1721980319164,12.41,177.26,177.22,19.7492]
[1721980320184,12.41,177.25,177.22,19.7492]
[1721980320370,12.41,177.3,177.21,23.1077]
[1721980320371,12.41,177.24,177.21,23.1077]
[1721980320566,22.064248,177.35,177.21,23.1077]
[1721980320567,22.064248,177.35,177.22,14.1064]
[1721980320893,12.41,177.28,177.25,5.6416]
[1721980321470,12.41,177.28,177.23,12.41]
[1721980321471,12.41,177.28,177.24,5.642]
[1721980321778,5.6401,177.3,177.24,5.642]
[1721980321969,12.41,177.28,177.24,5.642]
[1721980324385,12.41,177.26,177.22,14.1064]
[1721980325096,12.41,177.26,177.23,5.6422]
[1721980325872,79.0979,177.34,177.22,26.5164]
[1721980326071,12.41,177.28,177.22,26.5164]
[1721980326770,12.41,177.29,177.25,5.6414]
[1721980328704,5.6395,177.33,177.25,13.53813918]
[1721980328988,12.41,177.31,177.26,15.632]
[1721980329196,18.0496,177.32,177.27,5.6411]
[1721980330094,12.41,177.31,177.27,5.6411]
[1721980330281,12.41,177.31,177.26,21.2733]
[1721980331169,18.0499,177.31,177.26,21.2733]
[1721980331669,18.0505,177.29,177.26,15.632]
[1721980335474,12.41,177.28,177.26,15.632]
[1721980336070,12.41,177.28,177.24,14.1045]
[1721980336288,18.0508,177.28,177.24,14.1045]
[1721980336486,12.41,177.28,177.24,14.1045]
[1721980337503,12.41,177.28,177.24,19.7465]
[1721980337798,12.41,177.29,177.24,26.5145]
[1721980338202,12.41,177.3,177.24,26.5145]
[1721980338586,5.6399,177.31,177.24,26.5145]
[1721980338913,12.41,177.3,177.24,26.5145]
[1721980339112,12.41,177.3,177.26,5.6413]
[1721980340219,12.41,177.3,177.25,5.6416]
[1721980340524,5.6399,177.31,177.24,26.5145]
[1721980340525,12.41,177.29,177.24,32.1565]
[1721980340681,12.41,177.29,177.24,19.7465]
[1721980341307,18.0504,177.29,177.24,19.7465]
[1721980344108,12.41,177.29,177.24,14.1045]
[1721980344311,12.41,177.29,177.25,5.6417]
[1721980345181,18.0501,177.3,177.25,6.76989366]
[1721980345381,12.41,177.29,177.25,6.76989366]
[1721980345588,12.41,177.29,177.25,5.6417]
[1721980348712,12.41,177.29,177.25,6.76988674]
[1721980351016,12.41,177.29,177.25,5.6417]
[1721980351218,12.41,177.29,177.22,15.7371]
[1721980351219,12.41,177.26,177.22,15.7371]
[1721980351418,12.41,177.23,177.19,5.6436]
[1721980351609,12.41,177.21,177.18,22.0107]
[1721980351920,12.41,177.2,177.18,22.0107]
[1721980352114,12.41,177.2,177.18,16.3668]
[1721980352317,12.41,177.19,177.18,16.3668]
[1721980352504,12.41,177.2,177.18,16.3668]
[1721980352817,5.643,177.21,177.18,16.3668]
[1721980352818,12.41,177.21,177.18,16.3668]
[1721980352988,5.6426,177.23,177.18,22.0107]
[1721980353192,5.6414,177.26,177.2,26.5182]
[1721980353414,12.41,177.25,177.2,32.1615]
[1721980353601,12.41,177.25,177.21,5.643]
[1721980354520,5.6411,177.27,177.21,5.643]
[1721980354701,12.41,177.28,177.24,5.6419]
[1721980357098,5.6402,177.3,177.25,5.6416]
[1721980357099,12.41,177.29,177.25,5.6416]
[1721980357796,12.41,177.29,177.24,34.1913]
[1721980359831,12.41,177.29,177.24,21.7813]
[1721980362427,18.0504,177.29,177.24,21.7813]
[1721980363031,12.41,177.29,177.24,21.7813]
[1721980363510,12.41,177.29,177.25,5.6416]
[1721980363826,12.41,177.31,177.25,26.5136]
[1721980364027,12.41,177.31,177.26,5.6413]
[1721980364214,18.0497,177.32,177.27,5.6411]
[1721980364428,18.0497,177.32,177.27,6.76913095]
[1721980364614,12.41,177.31,177.27,5.6411]
[1721980364928,12.41,177.31,177.28,1.12803236]
[1721980365133,12.41,177.31,177.25,32.1553]
[1721980365327,12.41,177.3,177.25,19.7453]
[1721980366827,12.41,177.3,177.26,5.6413]
[1721980367044,5.6388,177.35,177.28,12.41]
[1721980367329,12.41,177.35,177.3,5.64]
[1721980367709,18.0487,177.35,177.3,5.64]
[1721980368207,5.6387,177.35,177.29,18.0504]
[1721980368416,5.8984435,177.4,177.39,5.6372]
[1721980368738,18.0463,177.42,177.36,5.6382]
[1721980368915,18.0463,177.42,177.37,1.12741737]
[1721980369511,12.41,177.4,177.34,14.0965]
[1721980369831,12.41,177.4,177.35,18.0482]
[1721980371608,12.41,177.4,177.36,5.6381]
[1721980371815,12.41,177.41,177.36,19.17555632]
[1721980372334,5.6359,177.44,177.37,5.6377]
[1721980372538,5.89684998,177.46,177.38,1.12740462]
[1721980372539,12.41,177.42,177.38,1.12740462]
[1721980372709,5.636,177.43,177.38,1.12740462]
[1721980372905,12.41,177.43,177.38,6.76490462]
[1721980373126,12.41,177.42,177.38,6.76490462]
[1721980373528,5.636,177.43,177.37,18.0479]
[1721980373716,12.41,177.42,177.37,18.0479]
[1721980376529,12.41,177.41,177.36,12.0289]
[1721980377213,12.41,177.4,177.36,12.0289]
[1721980379044,12.41,177.4,177.37,5.6378]
[1721980379248,12.41,177.41,177.37,5.6378]
[1721980379918,57.91477924,177.48,177.34,14.0965]
[1721980379919,12.41,177.38,177.34,14.0965]
[1721980380119,12.41,177.36,177.34,14.0965]
[1721980380532,12.41,177.37,177.34,19.7353]
[1721980382142,12.41,177.38,177.34,19.7353]
[1721980382733,12.41,177.37,177.35,5.6384]
[1721980383055,12.41,177.37,177.34,14.0965]
[1721980383231,12.41,177.37,177.34,19.7352]
[1721980383847,12.41,177.35,177.32,6.6412]
[1721980384028,12.41,177.35,177.32,12.2806]
[1721980385927,12.41,177.34,177.32,12.2806]
[1721980387149,12.41,177.34,177.33,5.6392]
[1721980387525,12.41,177.34,177.32,6.6412]
[1721980387726,12.41,177.34,177.31,22.118]
[1721980388260,12.41,177.34,177.32,5.6393]
[1721980390126,12.41,177.34,177.31,22.1183]
[1721980390327,12.41,177.34,177.32,5.6394]
[1721980390551,12.41,177.33,177.32,5.6394]
[1721980394057,12.41,177.33,177.31,16.4785]
[1721980394552,12.41,177.33,177.31,22.1182]
[1721980395657,12.41,177.32,177.3,14.0997]
[1721980395956,12.41,177.31,177.3,14.0997]
[1721980397655,12.41,177.31,177.3,19.7398]
[1721980397966,12.41,177.32,177.3,19.7398]
[1721980400452,12.41,177.32,177.3,14.0997]
[1721980402078,5.6389,177.34,177.3,14.0997]
[1721980402367,12.41,177.32,177.3,14.0997]
[1721980402569,5.6389,177.34,177.3,14.0997]
[1721980402870,12.41,177.31,177.29,5.6404]
[1721980406344,12.41,177.33,177.3,5.6401]
[1721980406655,12.41,177.35,177.31,5.6397]
[1721980408743,5.638,177.37,177.32,5.6395]
[1721980409069,12.41,177.36,177.32,5.6395]
[1721980411477,12.41,177.35,177.31,5.6397]
[1721980414472,18.0486,177.35,177.3,12.4699]
[1721980414791,12.41,177.34,177.3,0.0599]
[1721980415452,12.41,177.32,177.3,0.0599]
[1721980418183,12.41,177.32,177.3,5.7]
[1721980419285,5.6386,177.35,177.3,5.7]
[1721980419460,12.41,177.33,177.3,5.7]
[1721980419993,5.6386,177.35,177.3,5.7]
[1721980420179,12.41,177.36,177.3,13.59773302]
[1721980420352,18.0482,177.36,177.31,5.6398]
[1721980420559,12.41,177.35,177.32,5.6394]
[1721980421192,12.41,177.35,177.31,5.6397]
[1721980421486,12.41,177.34,177.3,0.0599]
[1721980421654,12.41,177.34,177.3,5.6998]
[1721980428767,12.41,177.32,177.3,0.0599]
[1721980429399,12.41,177.31,177.3,0.0599]
[1721980429572,12.41,177.32,177.3,0.0599]
[1721980431696,12.41,177.32,177.3,5.7]
[1721980436701,58.48034764,177.39,177.31,5.6398]
[1721980436702,5.6382,177.36,177.31,5.6398]
[1721980436890,10.16671702,177.38,177.32,5.6395]
[1721980437085,8.84034764,177.39,177.35,5.6385]
[1721980437283,12.41,177.37,177.35,5.6385]
[1721980438492,12.41,177.37,177.34,19.7353]
[1721980440793,12.41,177.37,177.34,14.0965]
[1721980441192,12.41,177.36,177.33,15.0485]
[1721980441498,12.41,177.34,177.33,15.0485]
[1721980441873,12.41,177.35,177.33,15.0485]
[1721980442811,12.41,177.34,177.3,0.0599]
[1721980443104,8.84034764,177.39,177.3,14.1602]
[1721980443399,8.84034764,177.39,177.32,5.6394]
[1721980443400,12.41,177.35,177.32,5.6394]
[1721980444695,12.41,177.35,177.31,5.6397]
[1721980445093,12.41,177.34,177.31,5.6397]
[1721980445295,12.41,177.34,177.3,14.1602]
[1721980446103,12.41,177.32,177.3,0.0599]
[1721980446399,12.41,177.31,177.3,0.0599]
[1721980447596,12.41,177.32,177.3,0.0599]
[1721980448197,12.41,177.33,177.31,5.6398]
[1721980448380,12.41,177.35,177.32,5.6394]
[1721980448587,5.6376,177.38,177.33,5.6391]
[1721980448799,12.41,177.36,177.33,5.6391]
[1721980449303,12.41,177.36,177.32,5.6394]
[1721980449892,8.84034764,177.39,177.33,5.6389]
[1721980450105,14.47784764,177.39,177.33,5.6389]
[1721980450309,12.41,177.37,177.32,5.6394]
[1721980450506,12.41,177.36,177.32,5.6394]
[1721980451213,12.41,177.36,177.31,14.0989]
[1721980451214,12.41,177.35,177.31,14.0989]
[1721980451811,12.41,177.36,177.31,19.7386]